bitfinex-derivatives/quotes_ETHF0:USTF0_20250531
["timestamp","ask_amount","ask_price","bid_price","bid_amount"]
[1748728597338,4.92423788,2540.7,2540.6,0.88684]
[1748728597532,5.12093796,2540.7,2540.6,0.88684]
[1748728597730,4.86157882,2540.7,2540.6,0.88684]
[1748728598233,5.12092462,2540.7,2540.6,0.88684]
[1748728598432,5.12095171,2540.7,2540.6,0.88684]
[1748728598631,1.91315265,2540.7,2540.6,0.88684]
[1748728598834,1.91314897,2540.7,2540.6,0.88684]
[1748728599142,1.65377882,2540.7,2540.6,0.88684]
[1748728599739,1.65377882,2540.7,2540.6,5.88684]
[1748728600441,0.62347882,2540.7,2540.6,9.09464]
[1748728601843,9.36377092,2540.8,2540.6,9.09464]
[1748728602048,3.2078,2541.3,2541.2,0.78665]
[1748728602545,3.2078,2541.3,2541.2,5.78665]
[1748728603443,3.2078,2541.3,2541.2,6.40965]
[1748728603647,0.00589403,2541.4,2541.3,0.78662]
[1748728603842,0.00589403,2541.4,2541.3,2.11062]
[1748728604043,0.00589403,2541.4,2541.3,5.93001536]
[1748728604246,0.00589403,2541.4,2541.3,6.71663536]
[1748728604444,0.00589403,2541.4,2541.3,1.71663536]
[1748728606152,3.21369403,2541.4,2541.3,1.71663536]
[1748728607854,5.55116359,2541.4,2541.3,1.71663536]
[1748728608853,3.21369403,2541.4,2541.3,1.81663536]
[1748728611156,3.21369403,2541.4,2541.3,1.88818875]
[1748728614254,4.54614368,2541.4,2541.3,1.88818875]
[1748728615458,1.33834368,2541.4,2541.3,1.88818875]
[1748728616757,2.33746956,2541.9,2541.3,6.10156875]
[1748728617053,6.20023296,2542.2,2542.1,0.78637]
[1748728617253,6.20023296,2542.2,2542.1,4.71937]
[1748728617458,6.98657296,2542.2,2542.1,0.78637]
[1748728617754,3.11939929,2542.2,2542.1,0.78637]
[1748728617960,5.1922,2542.3,2542.1,0.78637]
[1748728618258,5.97853,2542.3,2542.2,0.78634]
[1748728618457,5.1922,2542.3,2542.2,0.78634]
[1748728618757,5.97851,2542.3,2542.2,0.78634]
[1748728619757,5.97851,2542.3,2542.1,0.78636]
[1748728620159,0.78634,2542.2,2542.0,0.78638]
[1748728620456,5.97853,2542.3,2542.1,0.78635]
[1748728620759,0.78634,2542.2,2542.0,0.78638]
[1748728620951,2.13934,2542.2,2542.0,0.78638]
[1748728621456,2.13934,2542.2,2542.1,0.78637]
[1748728622859,1.353,2542.2,2542.1,0.78637]
[1748728623959,2.13934,2542.2,2542.1,0.88637]
[1748728624358,1.353,2542.2,2542.1,0.88637]
[1748728624564,2.13934,2542.2,2542.1,0.88637]
[1748728624961,1.353,2542.2,2542.1,0.88637]
[1748728625158,1.353,2542.2,2542.1,0.95792339]
[1748728625360,2.13934,2542.2,2542.1,0.95792339]
[1748728625867,1.353,2542.2,2542.1,0.95792339]
[1748728627464,2.13934,2542.2,2542.1,0.95792339]
[1748728633166,1.353,2542.2,2542.1,0.95792339]
[1748728633769,2.13934,2542.2,2542.1,0.95792339]
[1748728634071,1.353,2542.2,2542.1,0.95792339]
[1748728634369,2.15232,2542.3,2542.2,0.78634]
[1748728635570,3.50122,2542.3,2542.2,0.78634]
[1748728638566,0.6868,2542.3,2542.2,0.78634]
[1748728638774,3.21369403,2542.4,2542.3,0.78631]
[1748728639872,3.99997403,2542.4,2542.3,0.78631]
[1748728640068,3.21369403,2542.4,2542.3,0.78631]
[1748728640369,3.99997403,2542.4,2542.3,0.78631]
[1748728643267,3.21369403,2542.4,2542.2,0.95787339]
[1748728643473,0.78631,2542.3,2542.2,0.17155339]
[1748728643773,2.05431,2542.3,2542.2,0.17155339]
[1748728644272,3.31320214,2542.3,2542.2,0.17155339]
[1748728645173,3.99070214,2542.3,2542.2,0.17155339]
[1748728646073,7.19850214,2542.3,2542.2,0.17155339]
[1748728647075,7.19850214,2542.3,2542.2,0.95789339]
[1748728649075,7.19850214,2542.3,2542.2,0.17155339]
[1748728649480,24.04850214,2542.3,2542.2,0.95789339]
[1748728649971,23.26219214,2542.3,2542.2,0.95789339]
[1748728650474,24.04850214,2542.3,2542.2,0.95789339]
[1748728653582,24.04850214,2542.3,2542.2,0.85789339]
[1748728653884,4.46669214,2542.3,2542.2,0.95789339]
[1748728654783,1.25889214,2542.3,2542.2,0.95789339]
[1748728658790,5.25300214,2542.3,2542.2,0.17155339]
[1748728658992,6.52210214,2542.3,2542.2,0.17155339]
[1748728661187,6.52210214,2542.3,2542.2,0.95789339]
[1748728661685,24.61110214,2542.3,2542.2,0.17155339]
[1748728664287,24.61110214,2542.3,2542.2,0.95789339]
[1748728666986,21.40330214,2542.3,2542.2,0.95789339]
[1748728667193,24.61110214,2542.3,2542.2,0.95789339]
[1748728667383,24.61110214,2542.3,2542.2,0.17155339]
[1748728668488,24.61110214,2542.3,2542.2,0.07155339]
[1748728668880,24.61110214,2542.3,2542.2,0.17155339]
[1748728669088,24.61110214,2542.3,2542.2,0.95789339]
[1748728669686,24.80770214,2542.3,2542.2,0.95789339]
[1748728670587,21.59990214,2542.3,2542.2,0.95789339]
[1748728670887,24.80770214,2542.3,2542.2,0.95789339]
[1748728677602,21.59990214,2542.3,2542.2,0.95789339]
[1748728677900,24.80770214,2542.3,2542.2,0.95789339]
[1748728680097,6.71870214,2542.3,2542.2,0.95789339]
[1748728680295,24.75270214,2542.3,2542.2,0.95789339]
[1748728683507,24.75270214,2542.3,2542.2,0.85789339]
[1748728683809,24.75270214,2542.3,2542.2,0.95789339]
[1748728685007,21.54490214,2542.3,2542.2,0.95789339]
[1748728685309,24.75270214,2542.3,2542.2,0.95789339]
[1748728689709,24.9770206,2542.3,2542.2,0.95789339]
[1748728690315,24.75270214,2542.3,2542.2,0.95789339]
[1748728690517,24.97702169,2542.3,2542.2,0.95789339]
[1748728690713,24.97702144,2542.3,2542.2,0.95789339]
[1748728691017,24.97701995,2542.3,2542.2,0.95789339]
[1748728691217,24.97701959,2542.3,2542.2,0.95789339]
[1748728691416,21.76921959,2542.3,2542.2,0.95789339]
[1748728691617,24.97701959,2542.3,2542.2,0.95789339]
[1748728691915,24.97701946,2542.3,2542.2,0.95789339]
[1748728692315,24.75270214,2542.3,2542.2,0.95789339]
[1748728692517,24.97701994,2542.3,2542.2,0.95789339]
[1748728692712,24.97701787,2542.3,2542.2,0.95789339]
[1748728693120,24.75270214,2542.3,2542.2,0.95789339]
[1748728698522,24.75270214,2542.3,2542.2,0.85789339]
[1748728698918,24.75270214,2542.3,2542.2,0.95789339]
[1748728702622,23.48360214,2542.3,2542.2,0.95789339]
[1748728704624,4.66329214,2542.3,2542.2,0.95789339]
[1748728708031,5.44960214,2542.3,2542.2,0.95789339]
[1748728708226,4.66329214,2542.3,2542.2,0.95789339]
[1748728708932,5.44960214,2542.3,2542.2,0.95789339]
[1748728710726,5.44960214,2542.3,2542.2,0.85789339]
[1748728710931,5.44960214,2542.3,2542.2,0.95789339]
[1748728714621,4.66329214,2542.3,2542.2,0.95789339]
[1748728714828,5.44960214,2542.3,2542.2,0.95789339]
[1748728715929,4.66329214,2542.3,2542.2,0.95789339]
[1748728719427,1.45549214,2542.3,2542.2,0.95789339]
[1748728719634,5.5469408,2542.9,2542.8,0.78616]
[1748728720236,3.2078,2542.9,2542.8,0.78616]
[1748728720630,3.2078,2542.9,2542.8,5.78616]
[1748728721333,3.2078,2542.9,2542.8,0.78616]
[1748728721536,3.2078,2542.9,2542.8,0.88616]
[1748728722737,3.2078,2542.9,2542.8,5.88616]
[1748728723531,3.2078,2543.4,2543.3,0.786]
[1748728724337,3.2078,2543.4,2543.3,2.1371]
[1748728724534,0.6539,2543.5,2543.4,0.78597]
[1748728724836,0.6539,2543.5,2543.4,2.13707]
[1748728725837,0.00589403,2543.6,2543.5,0.78594]
[1748728726038,0.00589403,2543.6,2543.5,2.13704]
[1748728729336,0.00589403,2543.6,2543.5,0.78594]
[1748728731841,0.00589403,2543.6,2543.5,2.15054]
[1748728732142,0.00589403,2543.6,2543.5,2.25054]
[1748728738735,0.00589403,2543.6,2543.5,5.45834]
[1748728742452,0.6541,2543.9,2543.8,0.78585]
[1748728742653,3.2078,2544.1,2544.0,0.78578]
[1748728743848,3.2078,2544.1,2544.0,0.88578]
[1748728744248,4.5239,2544.1,2544.0,0.88578]
[1748728744750,5.30965,2544.1,2544.0,0.88578]
[1748728744950,5.30965,2544.1,2544.0,0.1]
[1748728745254,0.78593,2543.6,2543.5,0.78592]
[1748728745454,5.17244,2543.8,2543.3,6.728]
[1748728745657,2.74695,2543.5,2543.4,0.78594]
[1748728746053,0.78597,2543.4,2543.3,4.60098]
[1748728746249,0.786,2543.3,2543.2,0.00589403]
[1748728746755,0.786,2543.3,2543.2,0.79192403]
[1748728748151,2.12459,2543.4,2543.3,0.786]
[1748728748355,2.79629,2543.4,2543.3,0.786]
[1748728749556,2.79629,2543.4,2543.3,0.886]
[1748728752159,2.79627,2543.4,2543.3,0.886]
[1748728753862,2.79627,2543.4,2543.3,0.1]
[1748728755171,0.786,2543.3,2543.2,0.00589403]
[1748728755468,5.9037,2543.3,2543.2,0.00589403]
[1748728755667,10.9037,2543.3,2543.2,0.00589403]
[1748728756771,12.15631034,2543.3,2543.2,0.00589403]
[1748728759975,12.15631034,2543.3,2543.2,0.07744742]
[1748728760162,6.37031034,2543.3,2543.2,0.86347742]
[1748728760368,2.55531034,2543.3,2543.2,0.86347742]
[1748728760670,2.55531034,2543.3,2543.2,0.96347742]
[1748728760966,2.75181034,2543.3,2543.2,0.96347742]
[1748728761369,3.53781034,2543.3,2543.2,0.96347742]
[1748728761575,2.3391408,2543.8,2543.4,0.78597]
[1748728761777,2.3391408,2543.8,2543.7,0.78588]
[1748728762178,2.3391408,2543.8,2543.7,2.08478]
[1748728762777,0.6858,2544.0,2543.9,0.78582]
[1748728764476,1.47158,2544.0,2543.9,0.78582]
[1748728765876,0.6858,2544.0,2543.9,0.78582]
[1748728766878,1.47158,2544.0,2543.9,0.78582]
[1748728772887,0.78582,2543.9,2543.8,1.2674]
[1748728773182,0.786,2543.3,2543.2,0.89190403]
[1748728773475,0.786,2543.3,2543.2,0.00589403]
[1748728773885,0.786,2543.3,2543.2,0.10589403]
[1748728776585,0.786,2543.3,2543.2,0.89192403]
[1748728777289,0.786,2543.3,2543.2,0.10589403]
[1748728777984,0.786,2543.3,2543.2,0.89192403]
[1748728778686,0.786,2543.3,2543.2,0.10589403]
[1748728779886,2.03090885,2543.3,2543.2,0.10589403]
[1748728785389,2.03090885,2543.3,2543.2,0.00589403]
[1748728785787,2.03090885,2543.3,2543.2,0.10589403]
[1748728789492,2.03090885,2543.3,2543.2,0.17744742]
[1748728790694,3.38940885,2543.3,2543.2,0.17744742]
[1748728791792,3.38940885,2543.3,2543.2,0.96347742]
[1748728791994,1.24490885,2543.3,2543.2,0.96347742]
[1748728792190,1.24490885,2543.3,2543.2,4.17127742]
[1748728792493,2.3391408,2543.8,2543.7,0.78588]
[1748728792694,3.1249908,2543.8,2543.7,0.78588]
[1748728793087,2.3391408,2543.8,2543.7,0.78588]
[1748728793393,0.78583,2543.9,2543.8,0.78585]
[1748728794789,1.4369,2544.0,2543.9,0.78582]
[1748728796089,0.6511,2544.0,2543.9,0.78582]
[1748728796297,0.7858,2544.0,2543.9,0.7858]
[1748728796995,3.99358,2544.1,2544.0,0.78578]
[1748728798491,3.2078,2544.1,2544.0,0.78578]
[1748728799589,3.99355,2544.1,2544.0,0.78578]
[1748728799991,3.2078,2544.1,2544.0,0.78578]
[1748728800593,0.78567,2544.4,2544.3,0.78567]
[1748728800793,0.7857,2544.3,2544.2,0.78571]
[1748728800996,0.78567,2544.4,2544.3,0.78566]
[1748728801397,0.78568,2544.4,2544.0,1.4558]
[1748728801898,2.3391408,2544.7,2544.2,3.2078]
[1748728802102,0.78562,2544.6,2544.5,0.78562]
[1748728802488,3.1247308,2544.7,2544.6,0.7856]
[1748728802693,3.2078,2544.8,2544.7,0.78557]
[1748728802888,4.461,2545.0,2544.7,0.78557]
[1748728803092,0.78551,2544.9,2544.8,1.2436]
[1748728804899,0.78549,2545.0,2544.8,1.2436]
[1748728805107,0.78549,2545.0,2544.9,0.7855]
[1748728805302,3.2078,2545.1,2544.9,0.7855]
[1748728805598,3.99324,2545.1,2545.0,1.2516]
[1748728805903,3.99324,2545.1,2545.0,2.03708]
[1748728805904,3.2078,2545.1,2545.0,2.03708]
[1748728806205,3.99324,2545.1,2545.0,1.2516]
[1748728806402,0.78543,2545.2,2545.0,2.03705]
[1748728806602,0.78543,2545.2,2545.1,0.78544]
[1748728806805,0.78539,2545.3,2545.0,1.2516]
[1748728807099,0.78537,2545.4,2545.3,0.78538]
[1748728807296,3.2078,2545.5,2545.0,5.0656]
[1748728807496,3.99314,2545.5,2545.0,5.0656]
[1748728807706,3.2078,2545.5,2545.4,0.78535]
[1748728807906,3.2078,2545.5,2545.3,0.78537]
[1748728808098,0.78536,2545.4,2545.3,0.78537]
[1748728808405,0.78537,2545.4,2545.2,1.2516]
[1748728808606,0.78537,2545.4,2545.3,0.78538]
[1748728808800,0.78537,2545.4,2545.2,2.03699]
[1748728809001,0.78538,2545.3,2545.2,2.03699]
[1748728809205,0.78537,2545.4,2545.3,0.78538]
[1748728809402,0.78537,2545.4,2545.3,2.14868]
[1748728809603,3.2078,2545.5,2545.4,0.78535]
[1748728809803,3.99312,2545.5,2545.4,1.3633]
[1748728811200,3.99312,2545.5,2545.4,2.14865]
[1748728811400,3.99312,2545.5,2545.4,1.4633]
[1748728812207,3.99312,2545.5,2545.4,2.24865]
[1748728815217,0.78532,2545.5,2545.4,1.4633]
[1748728817827,0.78532,2545.5,2545.4,2.24865]
[1748728818925,4.5492,2545.8,2545.4,1.4633]
[1748728819133,3.8824,2545.8,2545.7,0.78526]
[1748728819525,4.66763,2545.8,2545.7,0.78526]
[1748728821944,0.78526,2545.7,2545.6,2.07437]
[1748728822122,0.68526,2545.7,2545.6,2.07437]
[1748728823133,0.78538,2545.3,2545.2,3.9932]
[1748728823328,0.78538,2545.3,2545.2,9.096]
[1748728823527,0.78538,2545.3,2545.2,14.096]
[1748728823730,0.78538,2545.3,2545.2,10.284]
[1748728824126,1.96339,2545.4,2544.9,3.2078]
[1748728824331,1.9637,2545.0,2544.5,0.79151403]
[1748728824630,0.7856,2544.6,2544.5,0.00589403]
[1748728826636,1.4629,2544.6,2544.5,0.10589403]
[1748728831238,4.6707,2544.6,2544.5,0.10589403]
[1748728831438,5.90496197,2544.6,2544.5,0.10589403]
[1748728836540,5.11936197,2544.6,2544.5,0.89152403]
[1748728836738,3.2078,2544.6,2544.5,0.89152403]
[1748728837041,3.2078,2544.6,2544.5,0.79152403]
[1748728837428,3.2078,2544.6,2544.5,0.89152403]
[1748728838237,3.2078,2545.0,2544.9,0.78551]
[1748728840240,1.45176,2545.1,2545.0,0.78548]
[1748728842147,0.6663,2545.1,2545.0,0.78548]
[1748728842440,1.45175,2545.1,2545.0,0.78548]
[1748728843539,0.78552,2545.0,2544.9,0.7855]
[1748728844143,0.78554,2544.9,2544.8,0.78552]
[1748728844742,0.7855,2545.0,2544.9,0.78549]
[1748728845241,0.7855,2545.0,2544.7,1.3439]
[1748728845242,0.78553,2544.9,2544.8,0.78552]
[1748728845440,2.03073,2544.9,2544.8,0.78552]
[1748728845738,0.78553,2544.9,2544.8,0.78552]
[1748728846542,0.7855,2545.0,2544.9,0.78548]
[1748728848944,0.7855,2545.0,2544.9,0.88548]
[1748728852648,0.7855,2545.0,2544.9,0.1]
[1748728852850,0.7855,2545.0,2544.9,1.4672]
[1748728853043,0.7855,2545.0,2544.9,2.25271]
[1748728853349,2.02266886,2545.0,2544.9,1.4672]
[1748728854246,5.23046886,2545.0,2544.9,1.4672]
[1748728856551,5.23046886,2545.0,2544.9,0.1]
[1748728861449,6.59536886,2545.0,2544.9,0.1]
[1748728861649,6.81945724,2545.0,2544.9,0.1]
[1748728861849,6.81946249,2545.0,2544.9,0.1]
[1748728862051,6.81946321,2545.0,2544.9,0.1]
[1748728862257,6.81945807,2545.0,2544.9,0.1]
[1748728862458,6.59536886,2545.0,2544.9,0.1]
[1748728862651,6.81950436,2545.0,2544.9,0.1]
[1748728863066,11.81950436,2545.0,2544.9,0.1]
[1748728863256,0.7856,2544.6,2544.5,0.00589403]
[1748728863453,3.9934,2544.6,2544.5,0.00589403]
[1748728863849,5.3093,2544.6,2544.5,0.00589403]
[1748728864461,6.54646886,2544.6,2544.5,0.00589403]
[1748728865859,1.96418,2544.4,2543.4,3.2078]
[1748728866064,0.78594,2543.5,2543.4,1.3128]
[1748728866365,0.78606,2543.1,2543.0,5.48673723]
[1748728866555,7.81186,2543.1,2543.0,5.48673723]
[1748728866752,12.81186,2543.1,2543.0,4.69293723]
[1748728866963,0.78612,2542.9,2542.8,0.00589403]
[1748728867267,1.357,2543.0,2542.5,0.78623]
[1748728867456,3.2078,2542.6,2542.5,2.14913]
[1748728867656,18.003,2542.9,2542.5,2.14913]
[1748728867657,0.78619,2542.7,2542.5,2.14913]
[1748728867856,0.78619,2542.7,2542.5,1.4629]
[1748728868056,0.78619,2542.7,2542.5,2.24914]
[1748728868959,0.78618,2542.8,2542.5,2.24914]
[1748728870059,0.7862,2542.7,2542.5,2.24915]
[1748728872168,3.2078,2542.6,2542.5,2.24915]
[1748728872667,0.7862,2542.7,2542.5,2.24915]
[1748728872868,0.7862,2542.7,2542.6,0.78622]
[1748728873168,3.99397,2542.8,2542.6,0.78622]
[1748728873468,3.99398,2542.8,2542.6,0.78622]
[1748728873669,0.78619,2542.7,2542.6,0.78622]
[1748728878272,3.99397,2542.8,2542.7,0.78619]
[1748728878975,3.99397,2542.8,2542.7,0.1]
[1748728879469,3.2078,2542.8,2542.7,0.88619]
[1748728879671,3.30277,2543.4,2543.2,0.78603]
[1748728879672,1.3378,2543.4,2543.2,0.78603]
[1748728879969,3.2078,2543.5,2543.2,0.78603]
[1748728880175,9.3679408,2543.8,2543.2,8.99383]
[1748728880371,4.03e-06,2543.3,2543.2,12.81483]
[1748728882870,4.03e-06,2543.3,2543.2,0.78603]
[1748728883068,4.03e-06,2543.3,2543.2,3.99383]
[1748728884575,4.03e-06,2543.3,2543.2,0.78603]
[1748728890579,0.78602403,2543.3,2543.2,0.78603]
[1748728890780,4.03e-06,2543.3,2543.2,0.78603]
[1748728891786,0.78600403,2543.3,2543.2,0.78603]
[1748728892180,4.03e-06,2543.3,2543.2,0.78603]
[1748728892984,0.78600403,2543.3,2543.2,0.78603]
[1748728893182,4.03e-06,2543.3,2543.2,0.78603]
[1748728893682,0.78600403,2543.3,2543.2,0.78603]
[1748728893883,0.78600403,2543.3,2543.2,0.88603]
[1748728894087,0.78600403,2543.3,2543.2,0.1]
[1748728894288,2.12030403,2543.3,2543.2,0.1]
[1748728895483,1.33430403,2543.3,2543.2,0.88603]
[1748728896099,4.03e-06,2543.3,2543.2,0.95758339]
[1748728897597,4.03e-06,2543.3,2543.2,9.16538339]
[1748728897796,4.03e-06,2543.3,2543.2,10.41998339]
[1748728898593,3.2078,2544.2,2544.1,0.78575]
[1748728901694,0.00589403,2544.4,2544.3,0.78569]
[1748728903506,0.79155403,2544.4,2544.2,0.78572]
[1748728903701,0.79155403,2544.4,2544.3,1.3539]
[1748728904307,0.79155403,2544.4,2544.3,2.13959]
[1748728904498,0.00589403,2544.4,2544.3,2.13959]
[1748728905398,0.79155403,2544.4,2544.3,2.13959]
[1748728905595,0.79155403,2544.4,2544.3,1.3539]
[1748728906401,0.78575,2544.1,2544.0,3.2078]
[1748728907500,0.00589403,2544.4,2544.0,3.2078]
[1748728907706,0.78574,2544.2,2544.1,1.3272]
[1748728907894,0.78578,2544.0,2543.9,0.00589403]
[1748728908902,0.78578,2544.0,2543.9,0.10589403]
[1748728909302,5.78578,2544.0,2543.9,0.10589403]
[1748728909506,0.78605,2543.2,2543.1,0.78605]
[1748728909702,0.78605,2543.2,2543.0,2.11369]
[1748728910207,0.78606,2543.1,2543.0,2.11369]
[1748728910809,0.78606,2543.1,2543.0,1.3276]
[1748728912398,0.78613,2542.9,2542.8,0.00589403]
[1748728913809,0.78651,2541.7,2541.6,3.2078]
[1748728914011,0.78649,2541.8,2541.7,1.3629]
[1748728915208,3.2078,2542.0,2541.7,1.3629]
[1748728915407,3.2078,2542.0,2541.9,0.78643]
[1748728916614,3.2078,2542.3,2542.0,0.7864]
[1748728916809,0.78634,2542.2,2542.0,0.7864]
[1748728917010,3.841,2542.5,2542.1,1.2994]
[1748728917212,0.78634,2542.2,2542.1,1.2994]
[1748728920214,24.5555,2542.6,2542.1,1.2994]
[1748728920215,4.5339,2542.6,2542.1,1.2994]
[1748728920417,2.3391408,2543.0,2542.5,3.2078]
[1748728920715,2.3391408,2543.0,2542.9,0.78612]
[1748728920911,5.17888403,2543.1,2542.6,1.2745]
[1748728921117,1.96563,2542.5,2541.8,0.78646]
[1748728921317,3.2078,2542.2,2541.5,0.00589403]
[1748728921507,1.949,2542.4,2541.5,0.00589403]
[1748728921508,0.7865,2541.7,2541.5,0.00589403]
[1748728921812,0.7865,2541.7,2541.6,1.3747]
[1748728922011,3.2078,2542.2,2542.1,0.78637]
[1748728922316,3.2078,2542.4,2542.0,1.96601]
[1748728922515,3.2078,2542.4,2542.3,0.78631]
[1748728922710,0.78626,2542.5,2542.1,1.9088]
[1748728922908,4.5348,2542.7,2542.4,0.78626]
[1748728923216,0.78626,2542.5,2542.4,0.78626]
[1748728923516,4.5348,2542.7,2542.4,0.78626]
[1748728923812,3.2078,2542.7,2542.6,0.78622]
[1748728924014,5.5469408,2543.0,2542.4,3.2078]
[1748728924314,3.2078,2543.0,2542.9,0.78613]
[1748728924712,3.2078,2543.0,2542.4,0.07155339]
[1748728924908,0.78625,2542.5,2542.4,0.07155339]
[1748728925709,3.21369403,2543.1,2542.4,0.07155339]
[1748728926012,3.2078,2542.7,2542.6,0.78622]
[1748728926712,3.2078,2542.7,2542.5,2.69244]
[1748728926907,0.78625,2542.5,2542.4,0.07155339]
[1748728927108,7.33723,2542.6,2542.4,0.07155339]
[1748728927311,3.2078,2542.7,2542.6,0.78622]
[1748728927815,7.12869403,2543.1,2543.0,0.78609]
[1748728928015,0.00589403,2543.1,2542.9,0.7861]
[1748728928211,0.78612,2542.9,2542.8,2.12774403]
[1748728928405,0.00589403,2543.1,2542.8,2.12773403]
[1748728928606,0.78611,2543.0,2542.8,2.12773403]
[1748728929113,0.78611,2543.0,2542.9,0.78612]
[1748728929314,0.00589403,2543.1,2543.0,0.78609]
[1748728929513,0.78612,2542.9,2542.8,0.00589403]
[1748728930016,5.78612,2542.9,2542.8,0.00589403]
[1748728930414,0.00589403,2543.1,2542.8,0.00589403]
[1748728930620,0.00589403,2543.1,2543.0,0.78609]
[1748728930819,0.79198403,2543.1,2542.9,0.7861]
[1748728931015,0.79198403,2543.1,2543.0,1.3448]
[1748728931216,0.00589403,2543.1,2543.0,2.13089]
[1748728931518,3.2078,2543.8,2543.6,0.78589]
[1748728931822,0.78605,2543.2,2542.8,0.00589403]
[1748728932023,0.78605,2543.2,2543.0,0.78608]
[1748728932321,0.78602,2543.3,2543.1,2.13086]
[1748728932517,0.78603,2543.2,2543.1,1.3448]
[1748728934322,0.00589403,2543.4,2543.1,1.3448]
[1748728934523,0.00589403,2543.4,2543.3,0.786]
[1748728935024,3.2078,2544.2,2543.9,0.78581]
[1748728935416,3.2078,2544.2,2544.1,0.78575]
[1748728935720,0.78567,2544.4,2544.3,0.78569]
[1748728935915,0.78569,2544.4,2544.2,0.78571]
[1748728936119,0.78569,2544.4,2544.3,2.03429]
[1748728936523,0.78569,2544.4,2544.3,1.2486]
[1748728936726,3.2078,2544.5,2544.3,2.03428]
[1748728937021,3.2078,2544.5,2544.1,0.00589403]
[1748728937022,0.78572,2544.2,2544.1,0.00589403]
[1748728937225,0.78594,2543.5,2543.2,7.8086]
[1748728937413,0.78593,2543.6,2543.4,1.41835]
[1748728937724,0.78593,2543.6,2543.5,1.3093]
[1748728938018,3.2078,2543.8,2543.7,0.78588]
[1748728938229,3.2078,2544.1,2544.0,0.78576]
[1748728938821,3.99358,2544.1,2543.9,0.78579]
[1748728939020,3.99358,2544.1,2544.0,1.4093]
[1748728939226,3.99358,2544.1,2544.0,0.1]
[1748728945029,3.2078,2544.1,2544.0,0.88578]
[1748728945326,3.2078,2544.4,2544.3,0.78569]
[1748728945525,3.99346,2544.4,2544.3,0.78569]
[1748728946027,3.2078,2544.4,2544.1,1.3414]
[1748728946330,0.78572,2544.2,2544.0,0.1]
[1748728946533,3.99355,2544.1,2544.0,0.1]
[1748728946827,5.23025,2544.1,2544.0,0.1]
[1748728947215,0.78591,2543.6,2543.5,1.27089403]
[1748728947626,0.78589,2543.7,2543.6,0.78591]
[1748728947823,4.4607,2544.0,2543.5,1.27089403]
[1748728948016,3.2078,2543.9,2543.6,1.96478]
[1748728948220,3.2078,2544.0,2543.7,3.85977]
[1748728948421,3.2078,2544.0,2543.9,0.78582]
[1748728948833,0.78577,2544.1,2544.0,0.78579]
[1748728949021,3.99357,2544.1,2544.0,0.78579]
[1748728949633,0.78577,2544.1,2544.0,0.78579]
[1748728949822,3.2078,2544.1,2544.0,0.78579]
[1748728950024,3.8397,2544.4,2543.8,3.88579]
[1748728950434,0.78574,2544.2,2544.1,0.78573]
[1748728951028,5.0,2544.2,2543.5,0.00589403]
[1748728951231,0.78589,2543.7,2543.6,0.78589]
[1748728951733,0.78589,2543.7,2543.6,1.3332]
[1748728952127,0.78591,2543.6,2543.5,0.10589403]
[1748728952325,4.65761,2543.6,2543.5,0.10589403]
[1748728953228,3.99371,2543.6,2543.5,0.10589403]
[1748728953431,0.78591,2543.6,2543.5,2.16221403]
[1748728953732,0.78591,2543.6,2543.5,1.37629403]
[1748728954527,3.99371,2543.6,2543.5,0.10589403]
[1748728955029,5.24641,2543.6,2543.5,0.10589403]
[1748728956034,5.24641,2543.6,2543.5,0.17744742]
[1748728956734,6.50705058,2543.6,2543.5,0.17744742]
[1748728956928,6.50705058,2543.6,2543.5,0.10589403]
[1748728957933,6.50705058,2543.6,2543.5,0.17744742]
[1748728960332,5.25435058,2543.6,2543.5,0.17744742]
[1748728961229,2.04655058,2543.6,2543.5,0.96338742]
[1748728961427,1.26064058,2543.6,2543.5,0.96338742]
[1748728962034,1.26064058,2543.6,2543.5,0.89183403]
[1748728962833,2.04655058,2543.6,2543.5,0.10589403]
[1748728963029,0.78591,2543.6,2543.5,0.10589403]
[1748728963229,3.99371,2543.6,2543.5,0.10589403]
[1748728965028,3.99371,2543.6,2543.5,0.17744742]
[1748728965428,6.00241,2543.6,2543.5,0.17744742]
[1748728966931,7.26641022,2543.6,2543.5,0.17744742]
[1748728967244,12.26641022,2543.6,2543.5,0.10589403]
[1748728967627,12.49316229,2543.6,2543.5,0.10589403]
[1748728967829,0.78609,2543.0,2542.9,1.3179]
[1748728968335,0.78609,2543.0,2542.9,2.10403]
[1748728968930,0.78608,2543.1,2543.0,0.78609]
[1748728969128,0.00589403,2543.2,2542.9,1.3179]
[1748728969332,0.78609,2543.0,2542.9,2.10401]
[1748728969943,0.98269,2543.0,2542.9,2.10401]
[1748728970235,0.98269,2543.0,2542.9,1.3179]
[1748728970635,0.98269,2543.0,2542.9,2.10403]
[1748728970937,0.98269,2543.0,2542.9,1.3179]
[1748728971527,0.98269,2543.0,2542.7,3.21369403]
[1748728971528,0.78616,2542.8,2542.7,3.21369403]
[1748728972238,0.78616,2542.8,2542.7,3.31369403]
[1748728974537,0.78616,2542.8,2542.7,0.10589403]
[1748728975239,0.78616,2542.8,2542.7,0.89208403]
[1748728975440,0.78615,2542.9,2542.8,0.78614]
[1748728975737,0.78615,2542.9,2542.8,2.02404]
[1748728978945,0.8424,2543.0,2542.9,0.78613]
[1748728978946,1.62851,2543.0,2542.9,0.78613]
[1748728979146,1.62851,2543.0,2542.9,2.07273]
[1748728979646,2.8917153,2543.0,2542.9,2.07273]
[1748728979846,2.8917153,2543.0,2542.9,1.2866]
[1748728980247,2.8917153,2543.0,2542.9,2.07273]
[1748728980748,2.8917153,2543.0,2542.9,1.2866]
[1748728981355,0.78616,2542.8,2542.7,0.10589403]
[1748728981550,3.99396,2542.8,2542.7,0.10589403]
[1748728982269,5.31756,2542.8,2542.7,0.10589403]
[1748728982447,5.54401894,2542.8,2542.7,0.10589403]
[1748728982647,5.5440259,2542.8,2542.7,0.10589403]
[1748728982850,5.54402677,2542.8,2542.7,0.10589403]
[1748728983151,5.31756,2542.8,2542.7,0.10589403]